fUSD/lending_fUSD_20250207
["ID","MTS","AMOUNT","RATE_DAILY","PERIOD"]
[352139703,1738957848749,-500.0,0.00016438,2]
[352139705,1738957848760,-500.0,0.00016438,2]
[352139708,1738957848771,-500.0,0.00016438,2]
[352139709,1738957848781,-500.0,0.00016438,2]
[352139712,1738957848792,-500.0,0.00016438,2]
[352139713,1738957848802,-500.0,0.00016438,2]
[352139715,1738957848813,-500.0,0.00016438,2]
[352139717,1738957848823,-500.0,0.00016438,2]
[352139719,1738957848832,-500.0,0.00016438,2]
[352139721,1738957848843,-500.0,0.00016438,2]
[352139723,1738957848853,-500.0,0.00016438,2]
[352139725,1738957848864,-1000.56135859,0.00016438,2]
[352139727,1738957848873,-500.0,0.00016438,2]
[352139729,1738957848884,-500.0,0.00016438,2]
[352139731,1738957848895,-500.0,0.00016438,2]
[352139733,1738957848905,-500.0,0.00016438,2]
[352139735,1738957848915,-164.85643891,0.00016438,2]
[352139770,1738957849541,-50.19046209,0.00016438,2]
[352139771,1738957849553,-284.953099,0.00016438,2]
[352139772,1738957849563,-500.0,0.00016438,2]
[352139773,1738957849572,-500.0,0.00016438,2]
[352139774,1738957849582,-500.0,0.00016438,2]
[352139775,1738957849592,-500.0,0.00016438,2]
[352139776,1738957849601,-500.0,0.00016438,2]
[352139777,1738957849610,-500.0,0.00016438,2]
[352139778,1738957849620,-500.0,0.00016438,2]
[352139779,1738957849629,-500.0,0.00016438,2]
[352139780,1738957849639,-500.0,0.00016438,2]
[352139781,1738957849648,-500.0,0.00016438,2]
[352139782,1738957849658,-500.0,0.00016438,2]
[352139783,1738957849667,-500.0,0.00016438,2]
[352139784,1738957849677,-500.0,0.00016438,2]
[352139785,1738957849687,-500.0,0.00016438,2]
[352139786,1738957849701,-500.0,0.00016438,2]
[352139787,1738957849710,-500.0,0.00016438,2]
[352139788,1738957849720,-500.0,0.00016438,2]
[352139789,1738957849729,-500.0,0.00016438,2]
[352139790,1738957849739,-274.50555759,0.00016438,2]
[352139791,1738957849749,-500.0,0.00016438,2]
[352139792,1738957849758,-500.0,0.00016438,2]
[352139793,1738957849767,-500.0,0.00016438,2]
[352139794,1738957849777,-500.0,0.00016438,2]
[352139795,1738957849787,-500.0,0.00016438,2]
[352139796,1738957849796,-500.0,0.00016438,2]
[352139797,1738957849805,-500.0,0.00016438,2]
[352139798,1738957849815,-500.0,0.00016438,2]
[352139799,1738957849824,-500.0,0.00016438,2]
[352139800,1738957849834,-500.0,0.00016438,2]
[352139801,1738957849844,-500.0,0.00016438,2]
[352139802,1738957849854,-509.02410604,0.00016438,2]
[352139803,1738957849863,-500.0,0.00016438,2]
[352139804,1738957849874,-500.0,0.00016438,2]
[352139805,1738957849883,-500.0,0.00016438,2]
[352139806,1738957849892,-500.0,0.00016438,2]
[352139807,1738957849902,-453.40322478,0.00016438,2]
[352139809,1738957932237,179.598,8.119e-05,2]
[352139850,1738959031995,-5784.2237,8.699e-05,2]
[352139851,1738959032005,-339.5404,8.699e-05,2]
[352139852,1738959032015,-249.00198998,8.699e-05,2]
[352139854,1738959032026,-1933.8015,8.836e-05,2]
[352139856,1738959032035,-500.0,8.851e-05,2]
[352139858,1738959032044,-1384.383,8.973e-05,2]
[352139860,1738959032054,-249.00198997,0.00011713,2]
[352139861,1738959032063,-1315.24,0.00012284,2]
[352139863,1738959032079,-180.97,0.00013699,2]
[352139865,1738959032088,-1000.0,0.00013972,2]
[352139867,1738959032100,-1617.9,0.00014071,2]
[352139868,1738959032110,-1221.54,0.00014081,2]
[352139869,1738959032120,-200.0,0.00014094,2]
[352139870,1738959032129,-248.31,0.00014141,2]
[352139871,1738959032140,-1500.0,0.00014181,2]
[352139872,1738959032150,-1447.42,0.00014399,2]
[352139873,1738959032159,-250.0,0.00014538,2]
[352139874,1738959032170,-1315.24,0.00014548,2]
[352139875,1738959032179,-1023.08,0.00014584,2]
[352139876,1738959032189,-200.0,0.00014656,2]
[352139877,1738959032198,-23900.0,0.000148,2]
[352139878,1738959032208,-249.00198997,0.00014827,2]
[352139879,1738959032217,-1883.52,0.00014864,2]
[352139880,1738959032227,-203.5,0.00014864,2]
[352139881,1738959032236,-442.17439122,0.00014893,2]
[352139882,1738959032245,-150.0,0.00014893,2]
[352139883,1738959032254,-219.32950525,0.00014893,2]
[352139884,1738959032263,-150.0,0.00014893,2]
[352139885,1738959032273,-442.17439122,0.0001491,2]
[352139886,1738959032282,-219.32950525,0.0001491,2]
[352139887,1738959032291,-150.0,0.00014912,2]
[352139888,1738959032301,-11734.35557255,0.00014919,2]
[352139889,1738959032630,-876.03099857,0.00014919,2]
[352139890,1738959032645,-1575.70342888,0.00014919,2]
[352139891,1738959032654,-442.17439122,0.00014927,2]
[352139892,1738959032663,-219.32950525,0.00014927,2]
[352139893,1738959032673,-391.79,0.00014931,2]
[352139894,1738959032683,-150.0,0.00014931,2]
[352139895,1738959032692,-173.67,0.00014935,2]
[352139896,1738959032701,-442.17439122,0.00014943,2]
[352139897,1738959032711,-219.32950525,0.00014943,2]
[352139898,1738959032721,-150.0,0.00014945,2]
[352139899,1738959032731,-150.0,0.0001495,2]
[352139900,1738959032740,-442.17439122,0.0001496,2]
[352139901,1738959032749,-219.32950525,0.0001496,2]
[352139902,1738959032759,-150.0,0.00014969,2]
[352139903,1738959032768,-442.17439122,0.00014977,2]
[352139904,1738959032777,-219.32950525,0.00014977,2]
[352139905,1738959032787,-150.0,0.00014988,2]
[352139906,1738959032797,-442.17439122,0.00014993,2]
[352139907,1738959032807,-219.32950525,0.00014993,2]
[352139908,1738959032816,-150.0,0.00014997,2]
[352139909,1738959032827,-150.0,0.00015007,2]
[352139910,1738959032836,-442.17439122,0.0001501,2]
[352139911,1738959032846,-219.32950525,0.0001501,2]
[352139912,1738959032855,-150.0,0.00015026,2]
[352139913,1738959032865,-442.17439122,0.00015027,2]
[352139914,1738959032874,-219.32950525,0.00015027,2]
[352139915,1738959032884,-442.17439122,0.00015044,2]
[352139916,1738959032893,-219.32950525,0.00015044,2]
[352139917,1738959032903,-150.0,0.00015045,2]
[352139918,1738959032912,-150.0,0.00015048,2]
[352139919,1738959032922,-398.32,0.00015054,2]
[352139920,1738959032931,-442.17439122,0.0001506,2]
[352139921,1738959032940,-219.32950525,0.0001506,2]
[352139922,1738959032950,-150.0,0.00015064,2]
[352139923,1738959032958,-1000.0,0.00015069,2]
[352139924,1738959032968,-442.17439122,0.00015077,2]
[352139925,1738959032977,-219.32950525,0.00015077,2]
[352139926,1738959032986,-150.0,0.00015083,2]
[352139927,1738959032996,-442.17439122,0.00015094,2]
[352139928,1738959033005,-219.32950525,0.00015094,2]
[352139929,1738959033015,-150.0,0.000151,2]
[352139930,1738959033024,-150.0,0.00015102,2]
[352139931,1738959033034,-171.7,0.00015109,2]
[352139932,1738959033043,-442.17439122,0.0001511,2]
[352139933,1738959033052,-219.32950525,0.0001511,2]
[352139934,1738959033062,-150.0,0.00015121,2]
[352139935,1738959033073,-1000.0,0.00015127,2]
[352139936,1738959033082,-442.17439122,0.00015127,2]
[352139937,1738959033092,-219.32950525,0.00015127,2]
[352139938,1738959033101,-150.0,0.0001514,2]
[352139939,1738959033111,-442.17439122,0.00015144,2]
[352139940,1738959033120,-219.32950525,0.00015144,2]
[352139941,1738959033129,-150.0,0.00015152,2]
[352139942,1738959033139,-150.0,0.00015159,2]
[352139943,1738959033149,-442.17439122,0.00015161,2]
[352139944,1738959033158,-219.32950525,0.00015161,2]
[352139945,1738959033167,-442.17439122,0.00015177,2]
[352139946,1738959033177,-219.32950525,0.00015177,2]
[352139947,1738959033186,-150.0,0.00015178,2]
[352139948,1738959033196,-442.17439122,0.00015194,2]
[352139949,1738959033205,-219.32950525,0.00015194,2]
[352139950,1738959033215,-150.0,0.00015197,2]
[352139951,1738959033225,-150.0,0.00015203,2]
[352139952,1738959033234,-442.17439122,0.00015211,2]
[352139953,1738959033244,-219.32950525,0.00015211,2]
[352139954,1738959033253,-150.0,0.00015217,2]
[352139955,1738959033263,-442.17439122,0.00015227,2]
[352139956,1738959033272,-219.32950525,0.00015227,2]
[352139957,1738959033281,-150.0,0.00015236,2]
[352139958,1738959033291,-442.17439122,0.00015244,2]
[352139959,1738959033300,-219.32950525,0.00015244,2]
[352139960,1738959033309,-150.0,0.00015255,2]
[352139961,1738959033319,-150.0,0.00015255,2]
[352139962,1738959033329,-442.17439122,0.00015261,2]
[352139963,1738959033577,-219.32950525,0.00015261,2]
[352139964,1738959033587,-150.0,0.00015274,2]
[352139965,1738959033597,-442.17439122,0.00015278,2]
[352139966,1738959033607,-134.87799748,0.00015278,2]
[352139967,1738959033624,-84.45150777,0.00015278,2]
[352139968,1738959033634,-150.0,0.00015293,2]
[352139969,1738959033644,-442.17439122,0.00015294,2]
[352139970,1738959033653,-193.64350101,0.00015294,2]
[352139971,1738959033665,-25.68600424,0.00015294,2]
[352139972,1738959033676,-150.0,0.00015307,2]
[352139973,1738959033688,-442.17439122,0.00015311,2]
[352139974,1738959033698,-44.88960454,0.00015311,2]
[352139975,1738959033719,-174.43990071,0.00015311,2]
[352139976,1738959033730,-150.0,0.00015312,2]
[352139977,1738959033740,-442.17439122,0.00015328,2]
[352139978,1738959033750,-219.32950525,0.00015328,2]
[352139979,1738959033760,-150.0,0.00015331,2]
[352139980,1738959033770,-1000.0,0.00015342,2]
[352139981,1738959033779,-442.17439122,0.00015344,2]
[352139982,1738959033789,-219.32950525,0.00015344,2]
[352139983,1738959033799,-150.0,0.0001535,2]
[352139984,1738959033808,-150.0,0.00015359,2]
[352139985,1738959033820,-442.17439122,0.00015361,2]
[352139986,1738959033829,-219.32950525,0.00015361,2]
[352139987,1738959033840,-150.0,0.00015369,2]
[352139988,1738959033849,-442.17439122,0.00015378,2]
[352139989,1738959033859,-219.32950525,0.00015378,2]
[352139990,1738959033868,-150.0,0.00015388,2]
[352139991,1738959033878,-442.17439122,0.00015395,2]
[352139992,1738959033887,-219.32950525,0.00015395,2]
[352139993,1738959033896,-150.0,0.00015407,2]
[352139994,1738959033906,-150.0,0.0001541,2]
[352139995,1738959033916,-442.17439122,0.00015411,2]
[352139996,1738959033926,-219.32950525,0.00015411,2]
[352139997,1738959033935,-150.0,0.00015426,2]
[352139998,1738959033945,-442.17439122,0.00015428,2]
[352139999,1738959033955,-219.32950525,0.00015428,2]
[352140000,1738959033966,-442.17439122,0.00015445,2]
[352140001,1738959033976,-150.0,0.00015445,2]
[352140002,1738959033985,-219.32950525,0.00015445,2]
[352140003,1738959033995,-442.17439122,0.00015461,2]
[352140004,1738959034005,-219.32950525,0.00015461,2]
[352140005,1738959034015,-150.0,0.00015462,2]
[352140006,1738959034024,-150.0,0.00015464,2]
[352140007,1738959034034,-442.17439122,0.00015478,2]
[352140008,1738959034044,-219.32950525,0.00015478,2]
[352140009,1738959034054,-150.0,0.00015483,2]
[352140010,1738959034063,-442.17439122,0.00015495,2]
[352140011,1738959034074,-219.32950525,0.00015495,2]
[352140012,1738959034084,-150.0,0.00015502,2]
[352140013,1738959034094,-442.17439122,0.00015512,2]
[352140014,1738959034103,-219.32950525,0.00015512,2]
[352140015,1738959034112,-150.0,0.00015514,2]
[352140016,1738959034122,-150.0,0.00015521,2]
[352140017,1738959034131,-442.17439122,0.00015528,2]
[352140018,1738959034141,-219.32950525,0.00015528,2]
[352140019,1738959034151,-150.0,0.0001554,2]
[352140020,1738959034160,-150.0,0.0001554,2]
[352140021,1738959034171,-442.17439122,0.00015545,2]
[352140022,1738959034180,-219.32950525,0.00015545,2]
[352140023,1738959034190,-150.0,0.00015559,2]
[352140024,1738959034200,-442.17439122,0.00015562,2]
[352140025,1738959034209,-219.32950525,0.00015562,2]
[352140026,1738959034219,-150.0,0.00015565,2]
[352140027,1738959034228,-150.0,0.00015578,2]
[352140028,1738959034237,-442.17439122,0.00015578,2]
[352140029,1738959034247,-219.32950525,0.00015578,2]
[352140030,1738959034256,-442.17439122,0.00015595,2]
[352140031,1738959034266,-219.32950525,0.00015595,2]
[352140032,1738959034275,-150.0,0.00015597,2]
[352140033,1738959034285,-442.17439122,0.00015612,2]
[352140034,1738959034295,-219.32950525,0.00015612,2]
[352140035,1738959034304,-150.0,0.00015616,2]
[352140037,1738959034314,-150.0,0.00015617,2]
[352140038,1738959034326,-442.17439122,0.00015629,2]
[352140040,1738959034336,-219.32950525,0.00015629,2]
[352140042,1738959034350,-150.0,0.00015635,2]
[352140044,1738959034359,-442.17439122,0.00015645,2]
[352140046,1738959034369,-219.32950525,0.00015645,2]
[352140048,1738959034379,-150.0,0.00015654,2]
[352140050,1738959034391,-442.17439122,0.00015662,2]
[352140052,1738959034400,-219.32950525,0.00015662,2]
[352140054,1738959034410,-150.0,0.00015669,2]
[352140056,1738959034421,-150.0,0.00015673,2]
[352140058,1738959034430,-442.17439122,0.00015679,2]
[352140060,1738959034441,-219.32950525,0.00015679,2]
[352140062,1738959034450,-150.0,0.00015692,2]
[352140064,1738959034460,-442.17439122,0.00015695,2]
[352140066,1738959034470,-219.32950525,0.00015695,2]
[352140068,1738959034479,-150.0,0.00015711,2]
[352140071,1738959034489,-442.17439122,0.00015712,2]
[352140074,1738959034498,-219.32950525,0.00015712,2]
[352140076,1738959034507,-150.0,0.00015721,2]
[352140079,1738959034517,-442.17439122,0.00015729,2]
[352140082,1738959034527,-219.32950525,0.00015729,2]
[352140085,1738959034536,-150.0,0.0001573,2]
[352140088,1738959034546,-442.17439122,0.00015746,2]
[352140089,1738959034556,-219.32950525,0.00015746,2]
[352140091,1738959034566,-150.0,0.00015749,2]
[352140094,1738959034579,-442.17439122,0.00015762,2]
[352140096,1738959034589,-219.32950525,0.00015762,2]
[352140099,1738959034599,-150.0,0.00015768,2]
[352140102,1738959034609,-150.0,0.00015772,2]
[352140105,1738959034619,-442.17439122,0.00015779,2]
[352140108,1738959034629,-219.32950525,0.00015779,2]
[352140111,1738959034639,-150.0,0.00015787,2]
[352140114,1738959034649,-442.17439122,0.00015796,2]
[352140117,1738959034659,-219.32950525,0.00015796,2]
[352140120,1738959034670,-150.0,0.00015806,2]
[352140123,1738959034680,-442.17439122,0.00015812,2]
[352140126,1738959034690,-219.32950525,0.00015812,2]
[352140129,1738959034700,-150.0,0.00015824,2]
[352140132,1738959034709,-150.0,0.00015825,2]
[352140135,1738959034719,-442.17439122,0.00015829,2]
[352140137,1738959034729,-219.32950525,0.00015829,2]
[352140141,1738959034739,-150.0,0.00015844,2]
[352140143,1738959034750,-442.17439122,0.00015846,2]
[352140146,1738959034760,-219.32950525,0.00015846,2]
[352140149,1738959034769,-442.17439122,0.00015863,2]
[352140152,1738959034779,-219.32950525,0.00015863,2]
[352140155,1738959034789,-150.0,0.00015863,2]
[352140158,1738959034800,-150.0,0.00015876,2]
[352140161,1738959034810,-442.17439122,0.00015879,2]
[352140165,1738959034820,-219.32950525,0.00015879,2]
[352140168,1738959034830,-150.0,0.00015882,2]
[352140171,1738959034840,-442.17439122,0.00015896,2]
[352140173,1738959034850,-219.32950525,0.00015896,2]
[352140175,1738959034859,-1500.0,0.000159,5]
[352140177,1738959034869,-150.0,0.00015901,2]
[352140178,1738959034878,-442.17439122,0.00015913,2]
[352140181,1738959034889,-219.32950525,0.00015913,2]
[352140183,1738959034899,-150.0,0.0001592,2]
[352140185,1738959034908,-150.0,0.00015927,2]
[352140187,1738959034918,-442.17439122,0.00015929,2]
[352140189,1738959034927,-219.32950525,0.00015929,2]
[352140191,1738959034937,-150.0,0.00015939,2]
[352140193,1738959034947,-442.17439122,0.00015946,2]
[352140195,1738959034956,-219.32950525,0.00015946,2]
[352140196,1738959034964,-150.0,0.00015958,2]
[352140197,1738959034974,-442.17439122,0.00015963,2]
[352140198,1738959034982,-219.32950525,0.00015963,2]
[352140199,1738959034991,-150.0,0.00015977,2]
[352140200,1738959035000,-150.0,0.00015979,2]
[352140201,1738959035010,-442.17439122,0.0001598,2]
[352140202,1738959035019,-219.32950525,0.0001598,2]
[352140203,1738959035028,-442.17439122,0.00015996,2]
[352140204,1738959035037,-150.0,0.00015996,2]
[352140205,1738959035046,-219.32950525,0.00015996,2]
[352140206,1738959035055,-442.17439122,0.00016013,2]
[352140207,1738959035063,-219.32950525,0.00016013,2]
[352140208,1738959035073,-150.0,0.00016015,2]
[352140209,1738959035082,-442.17439122,0.0001603,2]
[352140210,1738959035091,-219.32950525,0.0001603,2]
[352140211,1738959035100,-150.0,0.00016031,2]
[352140212,1738959035110,-150.0,0.00016034,2]
[352140213,1738959035119,-442.17439122,0.00016046,2]
[352140214,1738959035130,-219.32950525,0.00016046,2]
[352140215,1738959035139,-150.0,0.00016053,2]
[352140216,1738959035148,-442.17439122,0.00016063,2]
[352140218,1738959035157,-219.32950525,0.00016063,2]
[352140220,1738959035166,-150.0,0.00016072,2]
[352140222,1738959035175,-442.17439122,0.0001608,2]
[352140223,1738959035184,-219.32950525,0.0001608,2]
[352140225,1738959035193,-150.0,0.00016083,2]
[352140227,1738959035203,-150.0,0.00016091,2]
[352140229,1738959035212,-442.17439122,0.00016097,2]
[352140231,1738959035221,-219.32950525,0.00016097,2]
[352140233,1738959035230,-150.0,0.0001611,2]
[352140235,1738959035240,-442.17439122,0.00016113,2]
[352140237,1738959035250,-219.32950525,0.00016113,2]
[352140239,1738959035259,-150.0,0.00016129,2]
[352140241,1738959035268,-442.17439122,0.0001613,2]
[352140243,1738959035277,-219.32950525,0.0001613,2]
[352140245,1738959035286,-150.0,0.00016134,2]
[352140247,1738959035296,-442.17439122,0.00016147,2]
[352140249,1738959035306,-219.32950525,0.00016147,2]
[352140251,1738959035315,-150.0,0.00016149,2]
[352140254,1738959035327,-1374.4241749,0.00016163,2]
[352140256,1738959035338,-442.17439122,0.00016163,2]
[352140258,1738959035347,-219.32950525,0.00016163,2]
[352140260,1738959035360,-500.0,0.00016164,2]
[352140262,1738959035369,-500.0,0.00016164,2]
[352140263,1738959035378,-150.0,0.00016168,2]
[352140265,1738959035388,-442.17439122,0.0001618,2]
[352140267,1738959035398,-219.32950525,0.0001618,2]
[352140269,1738959035407,-150.0,0.00016186,2]
[352140271,1738959035416,-150.0,0.00016187,2]
[352140273,1738959035426,-442.17439122,0.00016197,2]
[352140275,1738959035435,-219.32950525,0.00016197,2]
[352140277,1738959035445,-150.0,0.00016206,2]
[352140279,1738959035454,-442.17439122,0.00016214,2]
[352140281,1738959035463,-219.32950525,0.00016214,2]
[352140283,1738959035473,-361.08597072,0.00016217,2]
[352140285,1738959035482,-150.0,0.00016225,2]
[352140287,1738959035491,-212.39677479,0.0001623,2]
[352140290,1738959035505,-229.77761643,0.0001623,2]
[352140292,1738959035514,-219.32950525,0.0001623,2]
[352140294,1738959035524,-18.49287832,0.00016238,2]
[352140296,1738959035535,-131.50712168,0.00016238,2]
[352140298,1738959035544,-150.0,0.00016244,2]
[352140300,1738959035552,-442.17439122,0.00016247,2]
[352140302,1738959035561,-219.32950525,0.00016247,2]
[352140304,1738959035570,-150.0,0.00016263,2]
[352140306,1738959035579,-442.17439122,0.00016264,2]
[352140308,1738959035588,-219.32950525,0.00016264,2]
[352140310,1738959035597,-442.17439122,0.00016281,2]
[352140312,1738959035605,-219.32950525,0.00016281,2]
[352140314,1738959035615,-150.0,0.00016282,2]
[352140316,1738959035624,-150.0,0.00016289,2]
[352140318,1738959035634,-442.17439122,0.00016297,2]
[352140320,1738959035643,-219.32950525,0.00016297,2]
[352140322,1738959035653,-150.0,0.00016301,2]
[352140324,1738959035662,-442.17439122,0.00016314,2]
[352140326,1738959035672,-219.32950525,0.00016314,2]
[352140328,1738959035681,-150.0,0.0001632,2]
[352140330,1738959035691,-442.17439122,0.00016331,2]
[352140332,1738959035700,-219.32950525,0.00016331,2]
[352140334,1738959035709,-219.68592736,0.00016331,2]
[352140336,1738959035719,-25466.23411199,0.00016338,2]
[352140338,1738959035728,-25184.88840044,0.00016338,2]
[352140340,1738959035737,-322.96236688,0.00016338,2]
[352140342,1738959035746,-150.0,0.00016339,2]
[352140344,1738959035755,-150.0,0.00016341,2]
[352140346,1738959035765,-442.17439122,0.00016347,2]
[352140348,1738959035774,-219.32950525,0.00016347,2]
[352140350,1738959035783,-150.0,0.00016358,2]
[352140352,1738959035791,-442.17439122,0.00016364,2]
[352140354,1738959035801,-219.32950525,0.00016364,2]
[352140356,1738959035810,-25466.23411199,0.00016368,2]
[352140358,1738959035821,-25184.88840041,0.00016368,2]
[352140360,1738959035830,-150.0,0.00016377,2]
[352140362,1738959035839,-442.17439122,0.00016381,2]
[352140364,1738959035849,-219.32950525,0.00016381,2]
[352140366,1738959035858,-150.0,0.00016393,2]
[352140368,1738959035867,-150.0,0.00016396,2]
[352140370,1738959035877,-442.17439122,0.00016398,2]
[352140372,1738959035886,-219.32950525,0.00016398,2]
[352140374,1738959035895,-22110.26578149,0.00016399,2]
[352140376,1738959035908,-3121.28294173,0.00016399,2]
[352140378,1738959035920,-234.68538877,0.00016399,2]
[352140380,1738959035929,-25184.88840041,0.00016399,2]
[352140382,1738959035939,-1000.0,0.000164,2]
[352140384,1738959035948,-1000.0,0.000164,2]
[352140386,1738959035958,-1000.0,0.000164,2]
[352140388,1738959035968,-1000.0,0.000164,2]
[352140390,1738959035977,-163.61594214,0.00016406,2]
[352140392,1738959035987,-442.17439122,0.00016414,2]
[352140394,1738959035996,-219.32950525,0.00016414,2]
[352140396,1738959036006,-150.0,0.00016415,2]
[352140398,1738959036015,-25466.23411199,0.00016429,2]
[352140400,1738959036025,-25184.88840041,0.00016429,2]
[352140402,1738959036034,-442.17439122,0.00016431,2]
[352140404,1738959036043,-219.32950525,0.00016431,2]
[352140406,1738959036052,-1897.47969746,0.00016431,2]
[352140408,1738959036061,-346.43614867,0.00016431,2]
[352140410,1738959036072,-5072.12704095,0.00016431,2]
[352140412,1738959036082,-892.27220459,0.00016431,2]
[352140414,1738959036092,-150.0,0.00016434,2]
[352140416,1738959036101,-1199.30659138,0.00016437,5]
[352140418,1738959036112,-1199.30659139,0.00016437,5]
[352140420,1738959036122,-500.0,0.00016438,2]
[352140422,1738959036132,-500.0,0.00016438,2]
[352140424,1738959036142,-190.37123564,0.00016438,2]
[352140426,1738959036151,-436.93170626,0.00016438,2]
[352140428,1738959036161,-500.0,0.00016438,2]
[352140430,1738959036171,-207.65925681,0.00016438,2]
[352140432,1738959036181,-500.0,0.00016438,2]
[352140434,1738959036190,-500.0,0.00016438,2]
[352140436,1738959036199,-500.0,0.00016438,2]
[352140438,1738959036208,-501.21578608,0.00016438,2]
[352140440,1738959036218,-500.0,0.00016438,2]
[352140442,1738959036227,-221.0456427,0.00016438,2]
[352140444,1738959036237,-500.0,0.00016438,2]
[352140445,1738959036246,-502.23520174,0.00016438,2]
[352140447,1738959036255,-500.0,0.00016438,2]
[352140449,1738959036265,-501.18228924,0.00016438,2]
[352140451,1738959036275,-500.0,0.00016438,2]
[352140453,1738959036284,-500.0,0.00016438,2]
[352140455,1738959036294,-638.72155357,0.00016438,2]
[352140457,1738959036303,-500.0,0.00016438,2]
[352140459,1738959036312,-500.0,0.00016438,2]
[352140461,1738959036324,-500.0,0.00016438,2]
[352140463,1738959036333,-500.0,0.00016438,2]
[352140465,1738959036344,-500.0,0.00016438,2]
[352140467,1738959036356,-500.0,0.00016438,2]
[352140469,1738959036365,-500.0,0.00016438,2]
[352140471,1738959036375,-500.0,0.00016438,2]
[352140473,1738959036385,-500.0,0.00016438,2]
[352140475,1738959036395,-249.15446033,0.00016438,2]
[352140510,1738959036814,-250.84553967,0.00016438,2]
[352140511,1738959036825,-232.90446033,0.00016438,2]
[352140512,1738959036846,-267.09553967,0.00016438,2]
[352140513,1738959036856,-214.70960265,0.00016438,2]
[352140514,1738959036868,-285.29039735,0.00016438,2]
[352140515,1738959036877,-500.0,0.00016438,2]
[352140516,1738959036887,-500.0,0.00016438,2]
[352140517,1738959036897,-171.27628096,0.00016438,2]
[352140518,1738959036909,-328.72371904,0.00016438,2]
[352140519,1738959036918,-188.171819,0.00016438,2]
[352140520,1738959036928,-477.90446196,0.00016438,2]
[352140521,1738959036939,-22.09553804,0.00016438,2]
[352140522,1738959036948,-301.48725883,0.00016438,2]
[352140523,1738959036957,-159.39970313,0.00016438,2]
[352140524,1738959036994,-341.69775308,0.00016438,2]
[352140525,1738959037003,-500.0,0.00016438,2]
[352140526,1738959037013,-500.0,0.00016438,2]
[352140527,1738959037022,-46.90380931,0.00016438,2]
[352140535,1738959038082,-276.79033074,0.00016438,2]
[352140536,1738959038094,-176.30585995,0.00016438,2]
[352140537,1738959038103,-500.0,0.00016438,2]
[352140538,1738959038112,-500.0,0.00016438,2]
[352140539,1738959038121,-500.0,0.00016438,2]
[352140540,1738959038130,-364.14963329,0.00016438,2]
[352140541,1738959038140,-502.48821203,0.00016438,2]
[352140542,1738959038149,-500.0,0.00016438,2]
[352140543,1738959038159,-545.01031305,0.00016438,2]
[352140544,1738959038167,-502.40829274,0.00016438,2]
[352140545,1738959038177,-500.0,0.00016438,2]
[352140546,1738959038186,-500.0,0.00016438,2]
[352140547,1738959038196,-500.0,0.00016438,2]
[352140548,1738959038205,-500.0,0.00016438,2]
[352140549,1738959038214,-500.0,0.00016438,2]
[352140550,1738959038223,-500.0,0.00016438,2]
[352140551,1738959038235,-500.0,0.00016438,2]
[352140552,1738959038244,-500.55906571,0.00016438,2]
[352140553,1738959038253,-500.0,0.00016438,2]
[352140554,1738959038262,-500.0,0.00016438,2]
[352140556,1738959038271,-583.2680394,0.00016438,2]
[352140558,1738959038280,-501.58656571,0.00016438,2]
[352140560,1738959038290,-500.0,0.00016438,2]
[352140561,1738959038299,-186.84658019,0.00016438,2]
[352140562,1738959038308,-500.0,0.00016438,2]
[352140563,1738959038317,-500.0,0.00016438,2]
[352140564,1738959038328,-500.0,0.00016438,2]
[352140565,1738959038338,-500.0,0.00016438,2]
[352140566,1738959038348,-500.0,0.00016438,2]
[352140567,1738959038359,-500.0,0.00016438,2]
[352140568,1738959038368,-500.0,0.00016438,2]